Cogmind - Beta 14 *** ADVENTURER MODE // 2024.10.07 @ 14:23:06 Player: Jefffff Result: Destroyed by Lightning with EMDS Performance ------------- Evolutions (5) 2500 Regions Visited (14) 2800 Robots Destroyed (325) 1625 Value Destroyed (12199) 12199 Prototype IDs (20) 400 Alien Tech Used (0) 0 Bonus (1138) 1138 TOTAL SCORE: 20662 Bonus ------- High Alert Combat Kills 460 Network Hubs Disabled 200 Met R17 at Cetus 500 Friendly Fire -22 Cogmind --------- Core Integrity 0/1000 Matter 135/300 Energy 97/100 System Corruption 11% Temperature Cool (0) Movement Core (50) Location -5/Hub_04(d) Parts ------- > --- POWER (1) -------- (None) > --- PROPULSION (4) --- (None) > --- UTILITY (8) ------ (None) > --- WEAPON (4) ------- (None) > --- INVENTORY (5) ---- Cold Fusion Reactor Cold Fusion Reactor Neutrino Core Reinforced Fission Core Heavy Missile Launcher Peak State ------------ > --- POWER ------------ Particle Reactor > --- PROPULSION ------- Centrium Heavy Treads Centrium Heavy Treads > --- UTILITY ---------- Advanced Heat Sink Advanced Cooling System Huge Storage Unit Improved Signal Interpreter Improved Target Analyzer Centrium Medium Armor Plating Improved Focal Shield Improved Hacking Suite > --- WEAPON ----------- Quantum Rifle Railgun Railgun Power Sword > --- INVENTORY -------- Light Angular Momentum Engine Light Fission Core Cold Fusion Reactor Neutrino Core Reinforced Fission Core Quantum Reactor Medium Treads Medium Treads Heavy Treads Advanced Heat Sink Advanced Heat Sink Compact Battery Phase Shifter Improved Thermal Shield Improved System Shield High-powered Tractor Beam Advanced Variable Charge Gun Quantum Rifle KE Penetrator KE Penetrator Heavy Missile Launcher Improved Remote Datajack Improved Plasma Cutter [Rating: 124] Favorites ----------- Power Cold Fusion Reactor Engine Heavy Ion Engine Power Core Enhanced Nuclear Core Reactor Cold Fusion Reactor Propulsion Medium Treads Treads Medium Treads Leg Aluminum Leg Wheel Wheel Utility Improved Signal Interpreter Device Cooling System Storage Huge Storage Unit Processor Improved Signal Interpreter Hackware Hacking Suite Protection Improved Medium Armor Plating Weapon Gatling Laser Energy Gun Gatling Laser Energy Cannon Beam Cannon Ballistic Gun Enhanced Autogun Ballistic Cannon Gauss Cannon Launcher Heavy Missile Launcher Special Weapon Improved Plasma Cutter Impact Weapon Heavy Hammer Slashing Weapon Greatsword Build | -11 -10 -9 -8 -7 -7 -7 -6 -6 -6 -5 -5 -5 -5 -5 ------- Run | Yrd Mat Mat Mat Fac Low Low Fac Was Fac Fac Ext Cet Arc Hub Slots Evolved 10 | . . 2 2 2 . . 2 . . 2 . . . . Power . | . . . . . . . . . . . . . . . Propulsion 2 | . . . . . . . . . . 2 . . . . Utility 6 | . . 1 2 2 . . 1 . . . . . . . Weapon 2 | . . 1 . . . . 1 . . . . . . . Parts Attached 207 | . 5 10 22 26 1 2 26 8 8 14 28 16 8 33 Power 16 | . . 2 3 2 . . 3 . 1 1 2 . . 2 Engine 6 | . . 2 2 1 . . 1 . . . . . . . Core 3 | . . . 1 1 . . . . . . 1 . . . Reactor 7 | . . . . . . . 2 . 1 1 1 . . 2 Propulsion 31 | . 1 3 4 6 . 1 5 1 . 2 1 3 . 4 Treads 19 | . . . . 4 . 1 3 1 . 2 1 3 . 4 Leg 8 | . 1 3 4 . . . . . . . . . . . Wheel 4 | . . . . 2 . . 2 . . . . . . . Hover . | . . . . . . . . . . . . . . . Flight . | . . . . . . . . . . . . . . . Utility 103 | . 2 2 12 12 1 1 10 7 2 8 16 8 2 20 Device 51 | . . . 4 5 . . 4 6 1 3 9 4 1 14 Storage 7 | . 2 1 1 1 . . 1 . . 1 . . . . Processor 12 | . . 1 3 1 1 . 1 . . . 1 2 . 2 Hackware 5 | . . . . 1 . . 1 1 . . . . 1 1 Protection 28 | . . . 4 4 . 1 3 . 1 4 6 2 . 3 Artifact . | . . . . . . . . . . . . . . . Weapon 57 | . 2 3 3 6 . . 8 . 5 3 9 5 6 7 Energy Gun 18 | . . . . 1 . . 2 . 3 1 4 3 2 2 Energy Cannon 4 | . 1 . . 1 . . . . 1 . . 1 . . Ballistic Gun 21 | . . 1 3 1 . . 4 . . 1 3 . 3 5 Ballistic Cannon 8 | . 1 1 . 2 . . 1 . 1 1 1 . . . Launcher 1 | . . . . . . . . . . . 1 . . . Special Weapon 1 | . . . . . . . . . . . . 1 . . Impact Weapon 2 | . . 1 . 1 . . . . . . . . . . Slashing Weapon 2 | . . . . . . . 1 . . . . . 1 . Piercing Weapon . | . . . . . . . . . . . . . . . Special Melee Weapon . | . . . . . . . . . . . . . . . Unidentified Prototypes 7 | . . 1 . . . . 2 . . . . 3 . 1 Parts Lost 60 | . . 2 8 1 . 1 8 . 5 . 10 4 3 18 Power 4 | . . 1 . . . . . . . . 1 . . 2 Propulsion 11 | . . . 1 1 . 1 . . . . 1 1 . 6 Utility 27 | . . . 6 . . . 5 . 2 . 5 2 . 7 Weapon 18 | . . 1 1 . . . 3 . 3 . 3 1 3 3 Highest Loss Streak 12 | . . 2 2 1 . 1 4 . 3 . 8 2 3 12 To Critical Strikes 2 | . . . . . . . . . . . . 1 1 . Average Slot Usage (%) 94 | . 99 99 99 99 100 100 94 100 97 70 85 83 87 89 Engine 2 | . 14 10 6 3 . . . . . . . . . . Core 2 | . . . 2 3 7 7 1 . . . 1 5 5 . Reactor 1 | . . . . . . . 4 6 6 5 3 . . 4 Treads 9 | . . . . 8 15 15 12 13 13 11 11 11 11 13 Leg 4 | . 28 22 17 1 . . . . . . . . . . Device 14 | . . . 8 18 16 15 18 18 21 10 17 13 17 26 Storage 10 | . 27 29 20 7 7 7 6 9 6 5 5 5 5 5 Processor 9 | . . 3 9 11 13 15 11 13 12 5 5 7 11 9 Hackware 3 | . . . . 6 7 7 6 11 9 . . . . 1 Protection 6 | . . . 6 7 7 7 7 . . 5 15 13 10 1 Energy Gun 4 | . 2 . . 1 7 7 5 6 12 5 9 5 5 4 Energy Cannon 2 | . 11 11 2 2 . . . . . 5 1 4 1 . Ballistic Gun 6 | . 5 1 14 5 . . 6 20 5 4 5 5 9 11 Ballistic Cannon 4 | . 8 9 . 4 7 7 3 . 5 4 3 2 . . Impact Weapon 3 | . . 10 9 7 7 7 . . . . . . . . Peak Build Rating 124 | . 9 19 37 51 51 50 64 70 77 95 96 119 122 124 Average Rating 60 | . 8 13 28 46 50 49 61 68 70 91 82 113 119 108 On Entrance 56 | 6 6 9 19 37 51 50 50 64 70 74 77 95 119 122 Naked Turns 3 | . . . . . . . . . . . . . . 3 Heaviest Build 164 | 13 55 64 76 116 116 126 137 117 164 164 152 163 138 134 Greatest Support 169 | 20 20 23 28 56 56 56 56 40 40 140 149 169 160 160 Greatest Overweight (x) 13 | . 2 2 4 6 2 2 13 2 4 1 1 1 . 4 Average Overweight (x) 1 | . 1 2 2 2 2 2 2 2 2 . . . . . Largest Inventory Capacity 25 | . 20 20 20 25 25 25 25 25 25 25 25 25 25 25 Average Capacity 23 | . 19 20 20 21 25 25 25 25 25 25 25 25 25 24 Most Carried 25 | . 20 20 20 25 25 25 25 25 25 25 25 25 25 25 Average Carried 22 | . 14 19 19 21 24 24 24 24 23 20 22 24 24 24 Final Capacity 25 | 8 20 20 20 25 25 25 25 25 25 25 25 25 25 5 Final Carried 25 | 6 20 20 20 25 25 25 25 25 21 25 25 25 25 5 Class Distribution -------------------- 39% | Hacker-Mutant 25% | Scavenger-Tank 21% | Mutant 6% | Hacker-Gunner 3% | Hacker-Skirmisher Dominant Class ---------------- Mutant | -10/Materials Mutant | -9/Materials Mutant | -8/Materials Hacker-Mutant | -7/Factory Hacker-Mutant | -7/Lower Caves Hacker-Mutant | -7/Lower Caves Hacker-Mutant | -6/Factory Hacker-Gunner | -6/Waste Hacker-Gunner | -6/Factory Scavenger-Tank | -5/Factory Scavenger-Tank | -5/Extension Scavenger-Tank | -5/Cetus Scavenger-Tank | -5/Archives Scavenger-Tank | -5/Hub_04(d) Resources | -11 -10 -9 -8 -7 -7 -7 -6 -6 -6 -5 -5 -5 -5 -5 ----------- Run | Yrd Mat Mat Mat Fac Low Low Fac Was Fac Fac Ext Cet Arc Hub Matter Collected 8568 | 177 162 253 1153 705 60 59 1250 566 656 508 1104 783 165 967 Remotely 607 | . . . . . . . . . . . 607 . . . Salvage Created 15730 | . 380 445 1735 1521 271 88 1907 1662 1361 688 1600 1298 515 2259 Parts 718 | . 29 41 106 62 5 2 81 30 66 40 68 64 22 102 Haulers Intercepted 19 | . 1 2 5 1 . . 3 . 1 . 4 . . 2 Recyclers Shooed 8 | . . 1 . 3 . . 1 . 1 . 1 . . 1 Parts Field Recycled . | . . . . . . . . . . . . . . . Retrieved Matter . | . . . . . . . . . . . . . . . Parts Self-Destructed 6 | . . . . . 4 2 . . . . . . . . Prevented . | . . . . . . . . . . . . . . . Kills | -11 -10 -9 -8 -7 -7 -7 -6 -6 -6 -5 -5 -5 -5 -5 ------- Run | Yrd Mat Mat Mat Fac Low Low Fac Was Fac Fac Ext Cet Arc Hub Combat Hostiles Destroyed 213 | . 9 13 23 14 5 3 31 6 16 14 17 26 4 32 Melee 5 | . . . . . . . 3 . . . . . 1 1 Guns 119 | . 1 1 18 5 5 3 20 6 10 4 4 8 3 31 Cannons 75 | . 8 12 5 9 . . 8 . 5 9 4 15 . . AOE 8 | . . . . . . . . . . . 8 . . . Classes Destroyed 18 | . 6 2 3 2 . . 1 1 1 1 1 . . . Worker 26 | . 2 . 7 1 . . 2 . 4 . 4 . . 6 Builder 21 | . 3 . 1 3 . . 4 . 4 3 3 . . . Tunneler 2 | . . . . . . . . . . . 2 . . . Hauler 19 | . 1 2 5 1 . . 3 . 1 . 4 . . 2 Recycler 23 | . . . 1 11 . . 4 . 3 . 4 . . . Operator 6 | . . 1 1 . . . . . . . . . 4 . Watcher 24 | . 3 1 3 4 . . 3 . 3 . 3 2 . 2 Swarmer 33 | . 6 6 . 3 4 . 4 . . . . 5 . 5 Grunt 80 | . 3 5 12 5 . 3 10 . 9 3 9 6 . 15 Brawler 3 | . . . . 1 . . . . . . 2 . . . Duelist 2 | . . . 1 . . . . . . . . . . 1 Sentry 20 | . . 2 7 1 . . . . 1 . 2 . 4 3 Hunter 27 | . . . 3 . . . 4 . 1 5 2 7 . 5 Programmer 21 | . . . . 4 1 . 4 . 4 5 . . . 3 Heavy 1 | . . . . . . . . . 1 . . . . . Behemoth 3 | . . . . . . . . . . 1 2 . . . Compactor 6 | . . . . . . . . 6 . . . . . . Cetus Guard 8 | . . . . . . . . . . . . 8 . . Assembled 9 | . . . . . . . 9 . . . . . . . Best Kill Streak 16 | . 8 4 6 10 4 3 14 3 5 3 16 6 3 8 Combat Bots Only 13 | . 3 3 4 4 4 3 13 3 4 2 8 6 3 6 Max Kills in Single Turn 4 | . 2 1 1 2 1 1 2 1 2 1 3 2 1 4 Gunslinging 1 | . . . . . . . . . . . . . . 1 Exploded 3 | . . . . . . . . . . . 3 . . . Melee 1 | . . . . . . . 1 . . . . . 1 1 Uniques/NPCs Destroyed . | . . . . . . . . . . . . . . . Combat | -11 -10 -9 -8 -7 -7 -7 -6 -6 -6 -5 -5 -5 -5 -5 -------- Run | Yrd Mat Mat Mat Fac Low Low Fac Was Fac Fac Ext Cet Arc Hub Hostile Shots Fired 1747 | . 30 33 167 97 28 36 287 . 160 113 172 250 71 303 Missed 471 | . 8 11 57 28 8 7 85 . 46 24 43 55 18 81 Damage Taken 18105 | . 128 461 1539 708 234 385 2102 . 1463 1028 2476 2838 964 3779 Core 1960 | . 35 117 227 62 23 65 209 . 203 13 412 96 13 485 Absorbed by Shields . | . . . . . . . . . . . . . . . Reduced by Siege Mode 112 | . . . . . . . . . . . . 100 . 12 Redirected to Shielding 262 | . . . . . . . 73 . . . 150 . . 39 Ignored by Resistances 7447 | . 45 52 424 207 69 107 1355 . 627 672 787 1009 474 1619 Regen/Repaired (Parts) 206 | . . . . . . . . . . 206 . . . . Core Remaining (%) 73 | 100 86 70 58 . . 78 . . 51 . . . . . Volleys Fired 789 | . 25 41 129 58 11 11 123 25 68 37 68 80 15 98 Largest 4 | . 2 2 2 2 2 2 4 4 4 4 4 4 3 3 Hottest 358 | . 95 95 85 128 128 128 158 158 226 236 256 256 358 164 Shots Fired 2080 | . 44 80 256 116 22 22 319 98 233 137 205 219 43 286 Gun 1446 | . 9 5 203 58 11 11 278 98 158 63 116 110 40 286 Cannon 622 | . 35 75 53 58 11 11 41 . 75 74 77 109 3 . Launcher 12 | . . . . . . . . . . . 12 . . . Special . | . . . . . . . . . . . . . . . Kinetic 1331 | . 23 41 203 101 11 11 226 75 123 74 107 115 25 196 Thermal 737 | . 21 39 53 15 11 11 93 23 110 63 86 104 18 90 Explosive 12 | . . . . . . . . . . . 12 . . . Electromagnetic . | . . . . . . . . . . . . . . . Robot Hit Streak 47 | . 14 14 31 40 17 21 24 31 18 17 23 47 25 21 Robot Miss Streak 6 | . 1 2 3 3 1 1 6 1 6 4 3 2 1 5 Penetration Max 2 | . . . . 1 . . 1 . 1 . 1 1 . 2 Secondary Targets 16 | . . . 2 . . . 1 1 1 . 1 . 1 9 Max Gunslinging Chain 1 | . . . 1 . . . 1 1 1 . 1 . 1 1 Shots Hit Robots 1567 | . 28 43 199 93 14 18 242 83 156 101 167 158 48 217 Core Hits 753 | . 19 19 75 46 14 9 110 21 106 56 110 60 18 90 Critical Kills 16 | . . . 1 . . . 2 2 1 2 2 3 . 3 Critical Parts Destroyed 18 | . . . . 3 . . 1 1 . . . 1 . 12 Critical Strikes 69 | . . . 1 6 . . 9 8 6 3 10 8 1 17 Burn 18 | . . . . . . . 2 2 4 . 6 3 . 1 Meltdown 4 | . . . . . . . . . . 1 1 2 . . Destroy 33 | . . . 1 3 . . 3 6 1 1 1 2 . 15 Blast 12 | . . . . 3 . . 4 . 1 1 2 1 . . Sever 2 | . . . . . . . . . . . . . 1 1 Melee Attacks 36 | . . 4 2 1 . . 6 . . . . . 15 8 Impact 7 | . . 4 2 1 . . . . . . . . . . Slashing 29 | . . . . . . . 6 . . . . . 15 8 Piercing . | . . . . . . . . . . . . . . . Sneak Attacks 6 | . . 1 . . . . 2 . . . . . 2 1 Combat Hostiles . | . . . . . . . . . . . . . . . Follow-up Attacks . | . . . . . . . . . . . . . . . Damage Inflicted 40128 | . 511 854 3359 2574 362 522 5337 1684 3939 2583 5978 4352 1583 6490 Guns 24493 | . 66 52 2594 1278 241 314 3912 1684 2701 1004 2058 1831 922 5836 Cannons 11853 | . 445 766 747 1296 121 208 934 . 1232 1496 2024 2521 63 . Explosions 2310 | . . . . . . . . . . 83 1896 . . 331 Melee 1466 | . . 36 18 . . . 491 . . . . . 598 323 Ramming 6 | . . . . . . . . . 6 . . . . . Kinetic 21238 | . 237 368 2594 2164 121 208 3169 1197 1884 893 2022 2148 487 3746 Thermal 15108 | . 274 450 747 410 241 314 1677 487 2049 1607 2060 2204 498 2090 Explosive 1979 | . . . . . . . . . . 83 1896 . . . Electromagnetic 331 | . . . . . . . . . . . . . . 331 Impact 54 | . . 36 18 . . . . . . . . . . . Slashing 1412 | . . . . . . . 491 . . . . . 598 323 Piercing . | . . . . . . . . . . . . . . . Highest Corruption 22 | . 1 6 . . . . 1 22 22 . . . . 11 Average Corruption 11 | . 1 6 . . . . 1 11 22 . . . . 3 Corruption Purged 10 | . . . . . . . . 10 . . . . . . Corruption Blocked . | . . . . . . . . . . . . . . . Effects 123 | . 6 12 . . . . 1 25 68 . . . . 11 Message Errors 25 | . . 2 . . . . 1 7 13 . . . . 2 Matter Fused 16 | . 1 3 . . . . . 4 7 . . . . 1 Heat Flow Errors 20 | . 1 1 . . . . . 5 11 . . . . 2 Energy Discharges 16 | . 1 3 . . . . . 5 7 . . . . . Parts Rejected 1 | . . . . . . . . . 1 . . . . . Parts Fused 1 | . . . . . . . . . 1 . . . . . Data Loss (minor) 10 | . 1 1 . . . . . 2 3 . . . . 3 Data Loss (major) 6 | . . . . . . . . . 6 . . . . . Misfires 4 | . . . . . . . . . 4 . . . . . Alerts 3 | . . . . . . . . . 3 . . . . . Misdirections 1 | . . . . . . . . . 1 . . . . . Weapon Failures 20 | . 2 2 . . . . . 2 11 . . . . 3 Overload Shots 2 | . . . . . . . . . . . . . 2 . Effects 1 | . . . . . . . . . . . . . 1 . Energy Bleed 1 | . . . . . . . . . . . . . 1 . Overflow Damage 500 | . . 11 . 37 3 . 234 . 10 11 62 4 108 20 Projectiles 100 | . . 5 . 37 3 . . . 10 . 41 4 . . Explosions 52 | . . . . . . . . . . 11 21 . . 20 Melee 348 | . . 6 . . . . 234 . . . . . 108 . Knockbacks 37 | . . 2 1 15 2 4 6 . 3 2 2 . . . Impact 1 | . . . 1 . . . . . . . . . . . Kinetic 35 | . . 2 . 14 2 4 6 . 3 2 2 . . . Secondary 1 | . . . . 1 . . . . . . . . . . Self-Inflicted Damage 105 | . . . . . . . . . . . 25 . . 80 Shots 2 | . . . . . . . . . . . 1 . . 1 Rammed 1 | . . . . . . . . . 1 . . . . . Targets Rammed 1 | . . . . . . . . . 1 . . . . . Kicked . | . . . . . . . . . . . . . . . Crushed . | . . . . . . . . . . . . . . . Highest Temperature 729 | . 168 318 39 59 . 165 180 240 281 310 729 645 235 210 Average Temperature 117 | . 45 81 11 29 . 84 52 108 74 85 258 186 101 51 Received Heat Transfer 4178 | . 6 36 624 255 . 297 518 . 486 174 576 162 243 801 Effects 39 | . . . . . . . . . . . 25 14 . . Shutdowns 2 | . . . . . . . . . . . . 2 . . Energy Bleed 2 | . . . . . . . . . . . 2 . . . Interference 15 | . . . . . . . . . . . 7 8 . . Matter Decay 9 | . . . . . . . . . . . 6 3 . . Short Circuit 2 | . . . . . . . . . . . 2 . . . Damage (minor) 3 | . . . . . . . . . . . 2 1 . . Damage (major) 5 | . . . . . . . . . . . 5 . . . Damage (core) 1 | . . . . . . . . . . . 1 . . . Siege Activations 3 | . . . . . . . . . . . . 2 . 1 Total Turns 94 | . . . . . . . . . . . . 83 . 11 Longest Duration 48 | . . . . . . . . . . . . 48 . 11 Robots Corrupted . | . . . . . . . . . . . . . . . Combat Hostiles . | . . . . . . . . . . . . . . . Parts Fried 3 | . . . . . . . . . . . . . . 3 Impact Corruptions 1 | . . 1 . . . . . . . . . . . . Robots Melted 6 | . . . . . . . . . 1 1 1 3 . . Combat Hostiles 6 | . . . . . . . . . 1 1 1 3 . . Parts Melted 28 | . . 2 2 . 1 . 9 . 1 1 4 6 2 . Heat Transferred 25915 | . 580 925 1591 836 525 725 3900 1300 3184 1925 3960 3166 618 2680 Parts Sabotaged . | . . . . . . . . . . . . . . . Parts Stolen . | . . . . . . . . . . . . . . . Parts Stripped . | . . . . . . . . . . . . . . . Power Chain Reactions . | . . . . . . . . . . . . . . . Alert | -11 -10 -9 -8 -7 -7 -7 -6 -6 -6 -5 -5 -5 -5 -5 ------- Run | Yrd Mat Mat Mat Fac Low Low Fac Was Fac Fac Ext Cet Arc Hub Peak Influence 959 | . 234 186 310 185 . . 252 14 245 332 418 337 206 959 Initial 139 | . . 43 1 120 . . 33 14 . 103 139 96 80 5 Average 124 | . 92 73 82 45 . . 62 1 107 87 261 156 115 629 Maximum Alert Level 3 | . 1 . 1 . . . 1 . 1 1 2 1 1 3 Low Security (%) 84 | . 93 100 88 100 . . 96 100 92 91 38 77 60 9 Level 1 10 | . 6 . 11 . . . 3 . 7 8 51 22 39 19 Level 2 1 | . . . . . . . . . . . 9 . . 13 Level 3 3 | . . . . . . . . . . . . . . 57 Level 4 . | . . . . . . . . . . . . . . . Level 5 . | . . . . . . . . . . . . . . . High Security . | . . . . . . . . . . . . . . . Max Security . | . . . . . . . . . . . . . . . Squads Dispatched 43 | . 1 2 3 4 . . 7 . 5 5 2 1 . 13 Investigation 8 | . 1 1 1 1 . . 2 . . . . 1 . 1 Extermination 11 | . . . . 3 . . 3 . 2 2 . . . 1 Reinforcement 15 | . . 1 . . . . 2 . 3 3 2 . . 4 Assault 2 | . . . 1 . . . . . . . . . . 1 Garrison 7 | . . . 1 . . . . . . . . . . 6 Intercept . | . . . . . . . . . . . . . . . Searches Triggered . | . . . . . . . . . . . . . . . Construction Impeded 6 | . . . . . . . . . 1 2 2 . . 1 Haulers Reinforced 5 | . . . . . . . 2 . . 1 . . . 2 Active Scanning Responses . | . . . . . . . . . . . . . . . Cargo Convoy Interrupts 1 | . . . . . . . . . . 1 . . . . Stealth | -11 -10 -9 -8 -7 -7 -7 -6 -6 -6 -5 -5 -5 -5 -5 --------- Run | Yrd Mat Mat Mat Fac Low Low Fac Was Fac Fac Ext Cet Arc Hub Distress Signals 18 | . . 2 5 2 . . 2 . 1 . 1 2 . 3 Communications Jammed . | . . . . . . . . . . . . . . . Distress Signals . | . . . . . . . . . . . . . . . Times Spotted 288 | . 12 21 33 22 5 3 43 6 25 14 21 34 5 44 Peak Tracking Total 8 | . 3 5 4 5 4 3 8 3 4 3 8 6 3 8 Tactical Retreats 18 | . 1 . 1 3 . . 2 . 1 1 . 7 . 2 Traps | -11 -10 -9 -8 -7 -7 -7 -6 -6 -6 -5 -5 -5 -5 -5 ------- Run | Yrd Mat Mat Mat Fac Low Low Fac Was Fac Fac Ext Cet Arc Hub Traps Triggered 8 | . 1 . . . . . 4 . 1 . . . . 2 Indirectly 1 | . . . . . . . . . . . . . . 1 Trap Hack Attempts . | . . . . . . . . . . . . . . . Triggered . | . . . . . . . . . . . . . . . Disarmed . | . . . . . . . . . . . . . . . Reprogrammed . | . . . . . . . . . . . . . . . Reused . | . . . . . . . . . . . . . . . Traps Extracted . | . . . . . . . . . . . . . . . Installed . | . . . . . . . . . . . . . . . Triggered 1 | . . . . . . . . . . 1 . . . . Machines | -11 -10 -9 -8 -7 -7 -7 -6 -6 -6 -5 -5 -5 -5 -5 ---------- Run | Yrd Mat Mat Mat Fac Low Low Fac Was Fac Fac Ext Cet Arc Hub Machines Disabled 32 | . . . 1 1 . . 5 . 2 3 2 3 2 13 Max in Single Turn 8 | . . . 1 1 . . 1 . 1 1 1 1 1 8 Garrison Access 1 | . . . 1 . . . . . . . . . . . Network Hub 1 | . . . . . . . . . . . . . . 1 Machines Repaired . | . . . . . . . . . . . . . . . Machines Dismantled 1 | . . . . . . . . . . . . 1 . . Machines Sabotaged . | . . . . . . . . . . . . . . . Overloaded Fab Kills . | . . . . . . . . . . . . . . . Hacking | -11 -10 -9 -8 -7 -7 -7 -6 -6 -6 -5 -5 -5 -5 -5 --------- Run | Yrd Mat Mat Mat Fac Low Low Fac Was Fac Fac Ext Cet Arc Hub Machines Accessed 35 | . 3 4 7 5 1 . 4 . 1 2 . 2 1 5 Terminals 27 | . 3 4 5 3 1 . 3 . . 1 . 2 . 5 Fabricators 2 | . . . . 1 . . 1 . . . . . . . Repair Stations 2 | . . . . 1 . . . . . 1 . . . . Recycling Units . | . . . . . . . . . . . . . . . Scanalyzers 2 | . . . 1 . . . . . 1 . . . . . Garrison Access 1 | . . . 1 . . . . . . . . . . . Total Hacks 162 | . 8 23 39 16 1 . 11 . 3 11 . 8 25 17 Successful 117 | . 6 15 31 10 1 . 6 . 1 9 . 4 25 9 Failed 45 | . 2 8 8 6 . . 5 . 2 2 . 4 . 8 Catastrophic 6 | . 1 1 1 . . . . . 1 . . 1 . 1 Database Lockouts . | . . . . . . . . . . . . . . . Manual 58 | . 5 14 13 9 . . 4 . . 3 . . . 10 Terminals 100 | . 8 23 23 11 1 . 6 . . 3 . 8 . 17 Fabricators 8 | . . . . 3 . . 5 . . . . . . . Repair Stations 10 | . . . . 2 . . . . . 8 . . . . Recycling Units . | . . . . . . . . . . . . . . . Scanalyzers 16 | . . . 13 . . . . . 3 . . . . . Garrison Access 3 | . . . 3 . . . . . . . . . . . Terminal Hacks 65 | . 3 11 10 2 1 . 2 . . 2 . 4 25 5 Record 39 | . . 3 3 . 1 . 1 . . . . 4 25 2 Robot Analysis 7 | . . 5 . . . . . . . . . . . 2 Prototype ID Bank 6 | . 2 . 3 1 . . . . . . . . . . Open DSF 1 | . . . . . . . 1 . . . . . . . Branch Access Points 3 | . . 2 1 . . . . . . . . . . . Terminal Index 4 | . 1 1 1 . . . . . . . . . . 1 Scanalyzer Index 1 | . . . 1 . . . . . . . . . . . Unreport Threat 3 | . . . . 1 . . . . . 2 . . . . Patrol Status 1 | . . . 1 . . . . . . . . . . . Fabricator Hacks 4 | . . . . 1 . . 3 . . . . . . . Network Status 2 | . . . . 1 . . 1 . . . . . . . Load Schematic 1 | . . . . . . . 1 . . . . . . . Build 1 | . . . . . . . 1 . . . . . . . Repair Station Hacks 8 | . . . . 2 . . . . . 6 . . . . Scan Component 4 | . . . . 1 . . . . . 3 . . . . Repair 4 | . . . . 1 . . . . . 3 . . . . Recycling Unit Hacks . | . . . . . . . . . . . . . . . Scanalyzer 14 | . . . 13 . . . . . 1 . . . . . Insert Component 6 | . . . 5 . . . . . 1 . . . . . Analyze 8 | . . . 8 . . . . . . . . . . . Garrison Access Hacks 1 | . . . 1 . . . . . . . . . . . Coupler Status 1 | . . . 1 . . . . . . . . . . . Unauthorized Hacks 25 | . 3 4 7 5 . . 1 . . 1 . . . 4 Terminals 25 | . 3 4 7 5 . . 1 . . 1 . . . 4 Track 2 | . . . 1 1 . . . . . . . . . . Botnet 21 | . 3 4 5 3 . . 1 . . 1 . . . 4 Operators 2 | . . . 1 1 . . . . . . . . . . Fabricators . | . . . . . . . . . . . . . . . Repair Stations . | . . . . . . . . . . . . . . . Recycling Units . | . . . . . . . . . . . . . . . Scanalyzers . | . . . . . . . . . . . . . . . Garrison Access . | . . . . . . . . . . . . . . . Data Cores Recovered 1 | . . . 1 . . . . . . . . . . . Used . | . . . . . . . . . . . . . . . Hacking Detections 30 | . 2 4 7 5 . . 3 . 1 1 . 2 . 5 Full Trace Events 7 | . 1 1 1 1 . . 2 . . . . 1 . . Feedback Events 2 | . 1 . . . . . 1 . . . . . . . Corruption 1 | . 1 . . . . . . . . . . . . . Hackware Fried 1 | . . . . . . . 1 . . . . . . . Feedback Blocked . | . . . . . . . . . . . . . . . Robot Schematics Acquired . | . . . . . . . . . . . . . . . Robots Built . | . . . . . . . . . . . . . . . Authchips . | . . . . . . . . . . . . . . . Time . | . . . . . . . . . . . . . . . Total Robot Build Rating . | . . . . . . . . . . . . . . . Part Schematics Acquired 4 | . . . 4 . . . . . . . . . . . Parts Built 2 | . . . . . . . 2 . . . . . . . Authchips . | . . . . . . . . . . . . . . . Time 36 | . . . . . . . 36 . . . . . . . Total Part Build Rating 6 | . . . . . . . 6 . . . . . . . Parts Repaired 4 | . . . . 1 . . . . . 3 . . . . Time 190 | . . . . 26 . . . . . 164 . . . . Parts Recycled . | . . . . . . . . . . . . . . . Recycled Matter . | . . . . . . . . . . . . . . . Retrieved Matter . | . . . . . . . . . . . . . . . Retrieved Components . | . . . . . . . . . . . . . . . Parts Scanalyzed 5 | . . . 4 . . . . . 1 . . . . . Part Schematics Acquired 4 | . . . 4 . . . . . . . . . . . Parts Damaged 2 | . . . 1 . . . . . 1 . . . . . Bothacking | -11 -10 -9 -8 -7 -7 -7 -6 -6 -6 -5 -5 -5 -5 -5 ------------ Run | Yrd Mat Mat Mat Fac Low Low Fac Was Fac Fac Ext Cet Arc Hub Used RIF Installer . | . . . . . . . . . . . . . . . Robots Hacked . | . . . . . . . . . . . . . . . Non-combat . | . . . . . . . . . . . . . . . Combat . | . . . . . . . . . . . . . . . Robot Hacks Applied . | . . . . . . . . . . . . . . . Relay Couplers Released 2 | . . . 2 . . . . . . . . . . . Machine Destruction 2 | . . . 2 . . . . . . . . . . . Fabnet Peak Effective % . | . . . . . . . . . . . . . . . Robots Rewired . | . . . . . . . . . . . . . . . Allies Hacked . | . . . . . . . . . . . . . . . Hacks Repelled . | . . . . . . . . . . . . . . . Allies | -11 -10 -9 -8 -7 -7 -7 -6 -6 -6 -5 -5 -5 -5 -5 -------- Run | Yrd Mat Mat Mat Fac Low Low Fac Was Fac Fac Ext Cet Arc Hub Total Allies 1 | . . . . . . . . 1 . . . . . . Largest Group 1 | . . . . . . . . 1 . . . . . . Highest-Rated Group 31 | . . . . . . . . 31 . . . . . . Highest-Rated Ally 31 | . . . . . . . . 31 . . . . . . Total Orders . | . . . . . . . . . . . . . . . Ally Attacks 13 | . . . . . . . . 13 . . . . . . Total Damage 209 | . . . . . . . . 209 . . . . . . Kills . | . . . . . . . . . . . . . . . Allies Corrupted . | . . . . . . . . . . . . . . . Allies Melted . | . . . . . . . . . . . . . . . Intel | -11 -10 -9 -8 -7 -7 -7 -6 -6 -6 -5 -5 -5 -5 -5 ------- Run | Yrd Mat Mat Mat Fac Low Low Fac Was Fac Fac Ext Cet Arc Hub Robot Analysis Total 7 | . . 5 . . . . . . . . . . . 2 Derelict Logs Recovered 2 | . . . . . 2 . . . . . . . . . Drone Launches . | . . . . . . . . . . . . . . . Drone Recoveries . | . . . . . . . . . . . . . . . Exploration | -11 -10 -9 -8 -7 -7 -7 -6 -6 -6 -5 -5 -5 -5 -5 ------------- Run | Yrd Mat Mat Mat Fac Low Low Fac Was Fac Fac Ext Cet Arc Hub Turns Passed 20304 | . 667 1282 2389 2997 2882 241 2543 643 1156 1446 935 1434 587 1102 Spaces Moved 6870 | 1 220 428 764 1294 889 64 645 163 265 464 356 628 297 392 Core 8 | . . . . . . . . . . . . . . 8 Treads 4627 | . . . . 514 889 64 603 163 265 464 356 628 297 384 Legs 1532 | 1 220 428 764 119 . . . . . . . . . . Wheels 703 | . . . . 661 . . 42 . . . . . . . Hover . | . . . . . . . . . . . . . . . Flight . | . . . . . . . . . . . . . . . Fastest Speed 50 | 120 120 260 260 115 320 320 165 330 330 160 160 160 160 50 Average Speed 244 | 120 254 260 263 202 320 320 313 330 339 237 173 175 160 171 Slowest Speed 490 | 120 260 260 400 470 320 320 410 330 490 246 240 240 160 480 Overloaded Moves . | . . . . . . . . . . . . . . . Propulsion Burnouts . | . . . . . . . . . . . . . . . Robots Hopped . | . . . . . . . . . . . . . . . Cave-ins Triggered 1 | . . 1 . . . . . . . . . . . . Exploration Rate (%) 45 | 2 39 40 60 28 94 13 18 94 10 12 47 96 96 38 Regions Visited 14 Branch Regions 6 Pre-discovered Areas . | . . . . . . . . . . . . . . . Known Exits Taken 9 | . . . 1 1 1 1 . . 1 1 1 1 1 . Unknown Exits Taken 3 | 1 1 1 . . . . . . . . . . . . Scrap Searched 6 | . . . . . 5 1 . . . . . . . . Spaces Dug 8 | . . 3 . 1 . . . . . . . . 4 . Terrain Destroyed 327 | . . 3 . 10 6 4 8 . 11 57 12 4 4 208 Melee 8 | . . 3 . 1 . . . . . . . . 4 . Projectile 94 | . . . . 9 6 4 6 . 11 10 5 4 . 39 AOE 223 | . . . . . . . . . . 47 7 . . 169 Terrain Rammed . | . . . . . . . . . . . . . . . Walls Destroyed . | . . . . . . . . . . . . . . . Machines Disabled . | . . . . . . . . . . . . . . . Actions | -11 -10 -9 -8 -7 -7 -7 -6 -6 -6 -5 -5 -5 -5 -5 --------- Run | Yrd Mat Mat Mat Fac Low Low Fac Was Fac Fac Ext Cet Arc Hub Total 8854 | . 284 525 960 1576 904 77 925 235 367 718 525 789 359 610 Wait 571 | . 7 10 . 132 . . 80 . 15 179 47 31 11 59 Move 6857 | . 219 427 763 1293 888 63 645 162 264 463 355 627 296 392 Hop . | . . . . . . . . . . . . . . . Pick Up 198 | . 20 16 21 32 2 1 25 16 5 16 14 13 6 11 Fast Attach 29 | . 2 1 3 1 . . 5 . 1 6 4 3 2 1 Attach 66 | . . 3 7 2 . 1 11 2 4 4 10 5 1 16 Detach 1 | . . . . . . . . . . . 1 . . . Swap 112 | . 3 6 12 23 1 1 10 6 3 4 14 8 5 16 Drop 183 | . 8 17 23 34 2 . 18 24 6 9 12 13 8 9 Fire 789 | . 25 41 129 58 11 11 123 25 68 37 68 80 15 98 Melee 36 | . . 4 2 1 . . 6 . . . . . 15 8 Ram . | . . . . . . . . . . . . . . . Kick . | . . . . . . . . . . . . . . . Crush 1 | . . . . . . . . . 1 . . . . . Escape Stasis 2 | . . . . . . . 2 . . . . . . . Rewire . | . . . . . . . . . . . . . . . Trap . | . . . . . . . . . . . . . . . Miscellaneous 9 | . . . . . . . . . . . . 9 . . Route ------- -11/Scrapyard -10/Materials -9/Materials (discovered 3 exits: *Mat / Min x2) -8/Materials (discovered 3 exits: *Fac / *Sto x2) -7/Factory -7/Lower Caves -7/Lower Caves -6/Factory -6/Waste -6/Factory -5/Factory (discovered 3 exits: *Fac / Upp / *Ext) -5/Extension (discovered 2 exits: *Fac / *Cet) -5/Cetus (discovered 3 exits: *Fac x2 / *Arc) -5/Archives (discovered 3 exits: *Fac / *Hub x2) -5/Hub_04(d) (discovered 2 exits: *Fac x2) History --------- Turn | Location | Event 1 | -11/Scrapyard | Discovered new exit (range 0) 1 | -11/Scrapyard | Entered Materials 310 | -10/Materials | Build established: Mutant 529 | -10/Materials | Discovered new exit (range 16) 668 | -10/Materials | Entered another Materials area 668 | -9/Materials | Evolved 2 slots: Utility x1, Weapon x1 965 | -9/Materials | Identified exit to Mines 1388 | -9/Materials | Crushed by falling debris 1824 | -9/Materials | Discovered new exit (range 16) 1950 | -9/Materials | Entered another Materials area 1950 | -8/Materials | Evolved 2 slots: Utility x2 2181 | -8/Materials | Discovered new exit (range 16) 3170 | -8/Materials | Identified exit to Storage 3608 | -8/Materials | Discovered new exit (range 8) 4336 | -8/Materials | Identified exit to Factory 4339 | -8/Materials | Entered Factory 4339 | -7/Factory | Evolved 2 slots: Utility x2 4718 | -7/Factory | Build established: Hacker-Mutant 4794 | -7/Factory | Repaired Broken Arm. Treads 5135 | -7/Factory | Discovered new exit (range 8) 5144 | -7/Factory | Identified exit to Lower Caves 7336 | -7/Factory | Entered Lower Caves 7957 | -7/Lower Caves | Discovered new exit (range 16) 8006 | -7/Lower Caves | Identified exit to Lower Caves 10218 | -7/Lower Caves | Entered another Lower Caves area 10296 | -7/Lower Caves | Discovered new exit (range 16) 10340 | -7/Lower Caves | Identified exit to Factory 10459 | -7/Lower Caves | Entered Factory 10459 | -6/Factory | Evolved 2 slots: Utility x1, Weapon x1 11770 | -6/Factory | Hacking Suite fried by hacking feedback 12044 | -6/Factory | Destroyed 13 combat bots 12243 | -6/Factory | Fabricated Arm. Treads (x2) 12343 | -6/Factory | Lost 4 parts (3u1w) 12476 | -6/Factory | Discovered new exit (range 5) 12583 | -6/Factory | Build established: Hacker-Skirmisher 12593 | -6/Factory | Identified exit to Lower Caves 13002 | -6/Factory | Sucked down chute 13002 | -6/Factory | Entered Waste 13003 | -6/Waste | Met a frightened Derelict 13017 | -6/Waste | EMP discharged 13058 | -6/Waste | Spotted C-40 Crusher 13080 | -6/Waste | Destroyed C-40 Crusher 13114 | -6/Waste | Spotted C-40 Crusher 13117 | -6/Waste | EMP discharged 13120 | -6/Waste | Spotted C-40 Crusher 13133 | -6/Waste | Destroyed C-40 Crusher 13137 | -6/Waste | Spotted C-40 Crusher 13139 | -6/Waste | Destroyed C-40 Crusher 13146 | -6/Waste | Destroyed C-40 Crusher 13217 | -6/Waste | EMP discharged 13280 | -6/Waste | Spotted C-40 Crusher 13290 | -6/Waste | Destroyed C-40 Crusher 13307 | -6/Waste | Found Damper Plating 13317 | -6/Waste | EMP discharged 13317 | -6/Waste | System corruption reached 10% 13336 | -6/Waste | Build established: Hacker-Gunner 13372 | -6/Waste | Spotted C-40 Crusher 13391 | -6/Waste | Destroyed C-40 Crusher 13417 | -6/Waste | EMP discharged 13517 | -6/Waste | EMP discharged 13592 | -6/Waste | Discovered new exit (range 12) 13617 | -6/Waste | EMP discharged 13641 | -6/Waste | Identified exit to Factory 13645 | -6/Waste | Entered Factory 14613 | -6/Factory | Build established: Hacker-Tank 14683 | -6/Factory | Discovered new exit (range 16) 14711 | -6/Factory | Lost 3 parts (2u1w) 14797 | -6/Factory | Identified exit to Factory 14801 | -6/Factory | Entered another Factory area 14801 | -5/Factory | Evolved 2 slots: Propulsion x2 14802 | -5/Factory | Identified exit to Upper Caves 15092 | -5/Factory | Build established: Scavenger-Tank 15111 | -5/Factory | Repaired EM Disruption Field 15156 | -5/Factory | Repaired Adv. Assault Cannon 15228 | -5/Factory | Repaired Imp. Spread Laser 15565 | -5/Factory | Discovered new exit (range 15) 15599 | -5/Factory | Identified exit to Factory 15743 | -5/Factory | Spotted B-75 Beast 15759 | -5/Factory | Destroyed B-75 Beast 15971 | -5/Factory | Cargo convoy interrupted 16229 | -5/Factory | Discovered new exit (range 12) 16245 | -5/Factory | Identified exit to Extension 16247 | -5/Factory | Entered Extension 16366 | -5/Extension | Spotted B-75 Beast 16415 | -5/Extension | Destroyed B-75 Beast 16443 | -5/Extension | Spotted B-75 Beast 16447 | -5/Extension | Disrupted transfer network 16503 | -5/Extension | Destroyed B-75 Beast 16577 | -5/Extension | Destroyed 8 combat bots 16582 | -5/Extension | Lost 8 parts (1p1n3u3w) 16887 | -5/Extension | Discovered new exit (range 15) 16889 | -5/Extension | Discovered exit to Factory (range 15) 16943 | -5/Extension | Identified exit to Cetus 17182 | -5/Extension | Entered Cetus 17212 | -5/Cetus | Spotted Cetus Guard 17212 | -5/Cetus | Spotted Cetus Guard 17215 | -5/Cetus | Spotted Cetus Guard 17229 | -5/Cetus | Destroyed Cetus Guard 17242 | -5/Cetus | Destroyed Cetus Guard 17243 | -5/Cetus | Spotted Cetus Guard 17259 | -5/Cetus | Destroyed Cetus Guard 17269 | -5/Cetus | Destroyed Cetus Guard 17459 | -5/Cetus | Discovered new exit (range 16) 17497 | -5/Cetus | Spotted Cetus Guard 17497 | -5/Cetus | Spotted Cetus Guard 17501 | -5/Cetus | Spotted Cetus Guard 17501 | -5/Cetus | Spotted Cetus Guard 17508 | -5/Cetus | Destroyed Cetus Guard 17521 | -5/Cetus | Destroyed Cetus Guard 17528 | -5/Cetus | Destroyed Cetus Guard 17554 | -5/Cetus | Destroyed Cetus Guard 17574 | -5/Cetus | Discovered exit to Factory (range 15) 17588 | -5/Cetus | Met Revision 17 17932 | -5/Cetus | Security sweep announced 18251 | -5/Cetus | Core integrity fell below 50% 18392 | -5/Cetus | Discovered exit to Factory (range 15) 18614 | -5/Cetus | Identified exit to Archives 18616 | -5/Cetus | Entered Archives 18799 | -5/Archives | Lost 3 parts (3w) 18809 | -5/Archives | Discovered new exit (range 15) 18826 | -5/Archives | Discovered new exit (range 16) 18847 | -5/Archives | Unable to access archive contents 18878 | -5/Archives | Unable to access archive contents 18899 | -5/Archives | Unable to access archive contents 18915 | -5/Archives | Unable to access archive contents 18931 | -5/Archives | Unable to access archive contents 18947 | -5/Archives | Unable to access archive contents 18999 | -5/Archives | Discovered exit to Factory (range 16) 19202 | -5/Archives | Identified exit to Hub_04(d) 19203 | -5/Archives | Entered Hub_04(d) 19450 | -5/Hub_04(d) | Garrison activated, responded to threat 19553 | -5/Hub_04(d) | Discovered exit to Factory (range 12) 19666 | -5/Hub_04(d) | Network Hub disabled 19803 | -5/Hub_04(d) | First assault squad dispatched 20043 | -5/Hub_04(d) | Garrison activated, responded to threat 20194 | -5/Hub_04(d) | Discovered exit to Factory (range 8) 20203 | -5/Hub_04(d) | Spotted Lightning 20216 | -5/Hub_04(d) | Spotted Lightning 20217 | -5/Hub_04(d) | Spotted Lightning 20225 | -5/Hub_04(d) | Core integrity fell below 20% 20275 | -5/Hub_04(d) | System corruption reached 10% 20302 | -5/Hub_04(d) | Released all parts (12) 20305 | -5/Hub_04(d) | Destroyed by Lightning with EMDS Last Messages --------------- 20299_ Cold Fusion Reactor destroyed. 20299_ System corrupted: Railgun jammed. 20299_ Slug penetrates Lightning. 20301_ Penetrated by EMDS Slug. 20302_ Penetrated by Slug. 20302_ Released Imp. Core Shielding. 20302_ Released Imp. Weapon Cycler. 20302_ Released Power Sword. 20302_ Released Huge Storage Unit. 20302_ Released Imp. Signal Interpreter. 20302_ Released Imp. System Shield. 20302_ Released Adv. Heat Sink. 20302_ Released Phase Shifter. 20302_ Released Propulsion Shielding. 20302_ Released KE Penetrator. 20302_ Released Railgun. 20302_ Railgun crushed and broken. 20302_ Acquired 30 matter. 20304_ EMDS Slug penetrates Wall. 20305_ Penetrated by EMDS Slug. Map ----- +----------------------------------------------------+ | """[ %*"#?#????????#[ =##########???????????????? | | !=##?# ????? #% # """"" #???????????????? | | """ ! #??# ?? # % # ""T"" #???????????????? | | #??# ?# # #???????????????? | | """ #??# #%= # #???????????????? | | #??# + !+ ** #???????????????? | | """ #??# # ! = * " #???????????????? | | #??# ??# %=# * " #???????????????? | | #########??# ????# # " #???????????????? | | ???????????##+#?????# # [ #???????????????? | | ????????????????????#= ##### ####???????????????? | | ??????????####?####?#% #???###??????????????????? | | ??????????# ?#%% #????????????????????????? | | ??????????# #! #????????????????????????? | | ??????????# | * #% #????????????????????????? | | ??????????# =%! /| #????????????????????????? | | ??????????# " " "[" #[ #????????????????????????? | | ?????????????G" " " #% #????????????????????????? | | ?????????????"" " "?# #????????????????????????? | | ????????????? ?+ #????????????????????????? | | ?????????????#####??### #????????????????????????? | | ????????????????????# # #????????????????????????? | | ??????????????####??### #????????????????????? #? | | ????????????### ### #################### ## | | ????????? kR !*=!h!% | | ????????? < %= @ !*=k!Y|** | | ????????????### [%! [!*!!!!h%![ | | ??????????????# !###########!#/####" ##### | | ??????????????## #??????????###*#???# ^ #???? | | ???????????????# ?????????????###???? "#??? | | ???????????????# ?????????????????????? #??? | | ???????????????# ??????????????????????? ?? | | ???????????????#?????????????????????????### "##? | | ???????????????????????????????????????????? " #? | | ????????????????????????????????????????????? "##? | | ?????????????????????????????????????????????? #?? | | ??????????????????????????????????????????????? ?? | | ?????????????????????????????????????????????????? | | ?????????????????????????????????????????????????? | | ?????????????????????????????????????????????????? | | ?????????????????????????????????????????????????? | | ?????????????????????????????????????????????????? | | ?????????????????????????????????????????????????? | | ?????????????????????????????????????????????????? | | ?????????????????????????????????????????????????? | | ?????????????????????????????????????????????????? | | ?????????????????????????????????????????????????? | | ?????????????????????????????????????????????????? | | ?????????????????????????????????????????????????? | | ?????????????????????????????????????????????????? | +----------------------------------------------------+ Best States ------------- Heat Dissipation 90 Energy Generation 23 Energy Capacity 525 Matter Stores 550 Matter Capacity 550 Sight Range 18 Robot Scan Range 15 Terrain Scan Density 10 Additional Mass Support 9 EM Shielding 2 Armor Coverage 2100 Resistance: KI 50 Resistance: TH 45 Resistance: EX 20 Resistance: EM 100 Resistance: I 20 Resistance: S 20 Resistance: P 20 Core Shielding 30 Propulsion Shielding 66 Utility Shielding 33 Weapon Cycling 20 Phase Shifting 5 Evasion (%) 45 Targeting Accuracy 8 Melee Accuracy 6 Target Analysis 6 Core Analysis 6 Armor Integrity Analysis 30 Recoil Reduction 10 Matter Filtering 30 Energy Filtering 30 Offensive Hacking 22 Defensive Hacking 20 Item Schematics ----------------- Insulated Plating | -8/Materials | Scanalyzed Imp. Light Armor Plating | -8/Materials | Scanalyzed Arm. Treads | -8/Materials | Scanalyzed Hacking Suite | -8/Materials | Scanalyzed Robot Schematics ------------------ None Fabricated ------------ Arm. Treads | x2 | -6/Factory Alien Tech Used ----------------- None Achievements -------------- Left-hand Path Revising The Future Superinsulated Turtlemind Challenges ------------ None Game ------ Seed ShadeFactoryRedistributor Manual? 0 Play Time 02:09:15 Cumulative 144.2 hours Start 2024.10.07 @ 12:14:23 End 2024.10.07 @ 14:23:06 Sessions 1 Manual Loads 0 Difficulty Adventurer Special Mode None Game No. 193 Rogue 0 Adventurer 193 Explorer 0 Win Type - Total 0 Types 0/0/0/0/0/0/0/0/0 Lore% 53 Gallery% 52 Achievement% 41 Wizard Run 0 Options --------- Layout 2 ASCII 0 Keyboard 0 Movement Mouse Keybinds 0 Fullscreen 2 Font 48/Smallcaps Map View 50x44 Zoom Use 0% Tactical HUD 1 Map Filters NONE Filters NONE Steam 1 RUN: 2116ace5-cb9f-4efd-84f4-163fc59919af